[Event "Titled Tuesday Blitz March 22 Early 2022"]
[White "Krzywda, Andrzej"]
[Black "Demin, Vladimir"]
[WhiteFideId "1114565"]
[BlackFideId "4167457"]
[WhiteElo "2098"]
[BlackElo "2528"]
[Result "1-0"]
[Round "06"]
[TimeControl "180+1"]
[Date "2022.03.22"]
[WhiteClock "0:00:05"]
[BlackClock "0:00:01"]

1. e4 {[%clk 0:02:59]}  Nf6 {[%clk 0:02:58]} 2. e5 {[%clk 0:02:58]}  Nd5 {[%clk 0:02:56]} 3. d4 {[%clk 0:02:58]}  d6 {[%clk 0:02:57]} 4. Nf3 {[%clk 0:02:59]}  dxe5 {[%clk 0:02:57]} 5. Nxe5 {[%clk 0:02:58]}  g6 {[%clk 0:02:57]} 6. Bc4 {[%clk 0:02:57]}  Be6 {[%clk 0:02:57]} 7. c3 {[%clk 0:02:49]}  Bg7 {[%clk 0:02:47]} 8. Qb3 {[%clk 0:02:49]}  Bxe5 {[%clk 0:02:18]} 9. dxe5 {[%clk 0:02:48]}  Nc6 {[%clk 0:02:18]} 10. Qxb7 {[%clk 0:02:31]}  Nxe5 {[%clk 0:02:11]} 11. Bb5+ {[%clk 0:02:29]}  Kf8 {[%clk 0:02:04]} 12. Bh6+ {[%clk 0:02:28]}  Kg8 {[%clk 0:02:04]} 13. O-O {[%clk 0:02:01]}  Rb8 {[%clk 0:01:51]} 14. Qa6 {[%clk 0:02:01]}  c6 {[%clk 0:01:35]} 15. Ba4 {[%clk 0:01:43]}  Qd6 {[%clk 0:01:29]} 16. Qe2 {[%clk 0:01:29]}  Ng4 {[%clk 0:01:26]} 17. g3 {[%clk 0:01:15]}  Nxh6 {[%clk 0:01:24]} 18. Nd2 {[%clk 0:01:06]}  Rxb2 {[%clk 0:01:12]} 19. Qd3 {[%clk 0:01:06]}  Nb6 {[%clk 0:01:05]} 20. Qa6 {[%clk 0:00:30]}  Rxd2 {[%clk 0:01:00]} 21. Rad1 {[%clk 0:00:25]}  Kg7 {[%clk 0:00:51]} 22. Rxd2 {[%clk 0:00:19]}  Qxd2 {[%clk 0:00:52]} 23. Bxc6 {[%clk 0:00:19]}  Nc4 {[%clk 0:00:42]} 24. Bf3 {[%clk 0:00:12]}  Ne5 {[%clk 0:00:36]} 25. Bg2 {[%clk 0:00:10]}  Rd8 {[%clk 0:00:33]} 26. Qa5 {[%clk 0:00:10]}  Nd3 {[%clk 0:00:29]} 27. Qxd8 {[%clk 0:00:08]}  Nf5 {[%clk 0:00:27]} 28. Be4 {[%clk 0:00:05]}  Nd6 {[%clk 0:00:14]} 29. Bxd3 {[%clk 0:00:05]}  Qxd3 {[%clk 0:00:15]} 30. Qxe7 {[%clk 0:00:06]}  Nf5 {[%clk 0:00:06]} 31. Qb4 {[%clk 0:00:06]}  Bc4 {[%clk 0:00:05]} 32. Re1 {[%clk 0:00:05]}  h5 {[%clk 0:00:02]} 33. Qc5 {[%clk 0:00:05]}  h4 {[%clk 0:00:02]} 34. Qe5+ {[%clk 0:00:05]}  Kh7 {[%clk 0:00:01]} 35. Qf6 {[%clk 0:00:05]} 1-0


[Site "https://www.chess.com"]

[Event "Titled Tuesday Blitz March 22 Early 2022"]
[White "Kubicka, Anna"]
[Black "Batsiashvili, Nino"]
[WhiteFideId "1152254"]
[BlackFideId "13602993"]
[WhiteElo "2000"]
[BlackElo "2192"]
[Result "0-1"]
[Round "06"]
[TimeControl "180+1"]
[Date "2022.03.22"]
[WhiteClock "0:00:16"]
[BlackClock "0:00:12"]

1. e4 {[%clk 0:03:00]}  e5 {[%clk 0:02:44]} 2. Nf3 {[%clk 0:03:00]}  Nc6 {[%clk 0:02:44]} 3. Bc4 {[%clk 0:03:00]}  Nf6 {[%clk 0:02:42]} 4. d3 {[%clk 0:03:00]}  Bc5 {[%clk 0:02:41]} 5. c3 {[%clk 0:03:00]}  d6 {[%clk 0:02:41]} 6. O-O {[%clk 0:03:00]}  O-O {[%clk 0:02:41]} 7. h3 {[%clk 0:03:00]}  a6 {[%clk 0:02:36]} 8. a4 {[%clk 0:02:59]}  Ba7 {[%clk 0:02:35]} 9. Bg5 {[%clk 0:02:54]}  h6 {[%clk 0:02:35]} 10. Bh4 {[%clk 0:02:55]}  g5 {[%clk 0:02:34]} 11. Nxg5 {[%clk 0:02:52]}  hxg5 {[%clk 0:02:35]} 12. Bxg5 {[%clk 0:02:53]}  Kg7 {[%clk 0:02:35]} 13. Nd2 {[%clk 0:02:43]}  Qe8 {[%clk 0:02:05]} 14. Kh1 {[%clk 0:02:35]}  Nh7 {[%clk 0:02:05]} 15. Qh5 {[%clk 0:02:30]}  f6 {[%clk 0:01:55]} 16. Bh6+ {[%clk 0:02:22]}  Kh8 {[%clk 0:01:54]} 17. Qh4 {[%clk 0:02:15]}  Rg8 {[%clk 0:01:33]} 18. Bxg8 {[%clk 0:02:11]}  Qxg8 {[%clk 0:01:34]} 19. f4 {[%clk 0:02:08]}  Be6 {[%clk 0:01:32]} 20. fxe5 {[%clk 0:01:33]}  Nxe5 {[%clk 0:01:20]} 21. Rxf6 {[%clk 0:01:31]}  Nxf6 {[%clk 0:01:12]} 22. Qxf6+ {[%clk 0:01:32]}  Kh7 {[%clk 0:01:12]} 23. Bf4 {[%clk 0:01:24]}  Qg6 {[%clk 0:01:08]} 24. Qh4+ {[%clk 0:01:09]}  Kg7 {[%clk 0:01:03]} 25. Rf1 {[%clk 0:01:10]}  Nf7 {[%clk 0:00:49]} 26. d4 {[%clk 0:01:03]}  Rh8 {[%clk 0:00:48]} 27. Qf2 {[%clk 0:00:57]}  c6 {[%clk 0:00:35]} 28. Nf3 {[%clk 0:00:51]}  Bb8 {[%clk 0:00:33]} 29. Nh4 {[%clk 0:00:48]}  Qh5 {[%clk 0:00:32]} 30. Bg3 {[%clk 0:00:46]}  Rh6 {[%clk 0:00:28]} 31. Nf5+ {[%clk 0:00:29]}  Bxf5 {[%clk 0:00:27]} 32. exf5 {[%clk 0:00:30]}  Rf6 {[%clk 0:00:20]} 33. Bh4 {[%clk 0:00:30]}  Ng5 {[%clk 0:00:20]} 34. Qg3 {[%clk 0:00:26]}  Kh6 {[%clk 0:00:20]} 35. Re1 {[%clk 0:00:20]}  Rxf5 {[%clk 0:00:12]} 36. Re8 {[%clk 0:00:19]}  Qxe8 {[%clk 0:00:12]} 37. Bxg5+ {[%clk 0:00:17]}  Rxg5 {[%clk 0:00:12]} 38. Qh4+ {[%clk 0:00:17]}  Kg6 {[%clk 0:00:12]} 39. Qf4 {[%clk 0:00:16]}  d5 {[%clk 0:00:12]} 0-1


[Site "https://www.chess.com"]

[Event "Titled Tuesday Blitz March 22 Early 2022"]
[White "Ladan, Nicholas"]
[Black "Chyngyz, Sultai"]
[WhiteFideId "30918855"]
[BlackFideId "13803158"]
[WhiteElo "2167"]
[BlackElo "1365"]
[Result "0-1"]
[Round "06"]
[TimeControl "180+1"]
[Date "2022.03.22"]
[WhiteClock "0:00:04"]
[BlackClock "0:01:37"]

1. d4 {[%clk 0:03:00]}  Nf6 {[%clk 0:02:58]} 2. Bf4 {[%clk 0:03:00]}  g6 {[%clk 0:02:56]} 3. Nf3 {[%clk 0:03:00]}  Bg7 {[%clk 0:02:55]} 4. Nc3 {[%clk 0:03:01]}  O-O {[%clk 0:02:54]} 5. Qd2 {[%clk 0:02:59]}  d6 {[%clk 0:02:53]} 6. e4 {[%clk 0:02:58]}  c6 {[%clk 0:02:54]} 7. h4 {[%clk 0:02:54]}  h5 {[%clk 0:02:53]} 8. O-O-O {[%clk 0:02:53]}  b5 {[%clk 0:02:52]} 9. Bd3 {[%clk 0:02:48]}  a5 {[%clk 0:02:51]} 10. Bh6 {[%clk 0:02:24]}  a4 {[%clk 0:02:51]} 11. Bxg7 {[%clk 0:02:22]}  Kxg7 {[%clk 0:02:52]} 12. Ng5 {[%clk 0:02:21]}  b4 {[%clk 0:02:51]} 13. Ne2 {[%clk 0:02:17]}  b3 {[%clk 0:02:50]} 14. cxb3 {[%clk 0:02:10]}  axb3 {[%clk 0:02:51]} 15. a3 {[%clk 0:02:11]}  Ba6 {[%clk 0:02:49]} 16. Bb1 {[%clk 0:02:09]}  Bc4 {[%clk 0:02:45]} 17. Nc3 {[%clk 0:02:05]}  Qb6 {[%clk 0:02:44]} 18. f4 {[%clk 0:01:55]}  Na6 {[%clk 0:02:43]} 19. f5 {[%clk 0:01:53]}  c5 {[%clk 0:02:41]} 20. e5 {[%clk 0:01:47]}  dxe5 {[%clk 0:02:37]} 21. dxe5 {[%clk 0:01:46]}  Ng4 {[%clk 0:02:36]} 22. fxg6 {[%clk 0:01:21]}  fxg6 {[%clk 0:02:35]} 23. Nd5 {[%clk 0:00:55]}  Qb7 {[%clk 0:02:20]} 24. Ne3 {[%clk 0:00:34]}  Rf2 {[%clk 0:02:07]} 25. Qc3 {[%clk 0:00:33]}  Nxe3 {[%clk 0:02:02]} 26. e6+ {[%clk 0:00:30]}  Kg8 {[%clk 0:01:59]} 27. Qxe3 {[%clk 0:00:28]}  Qxg2 {[%clk 0:01:56]} 28. Qc3 {[%clk 0:00:19]}  Nb4 {[%clk 0:01:52]} 29. axb4 {[%clk 0:00:16]}  cxb4 {[%clk 0:01:47]} 30. Qxc4 {[%clk 0:00:13]}  Rxb2 {[%clk 0:01:36]} 31. Rhg1 {[%clk 0:00:09]}  Rxb1+ {[%clk 0:01:36]} 32. Kxb1 {[%clk 0:00:05]}  Ra1+ {[%clk 0:01:36]} 33. Kxa1 {[%clk 0:00:04]}  Qa2# {[%clk 0:01:37]} 0-1


[Site "https://www.chess.com"]

[Event "Titled Tuesday Blitz March 22 Early 2022"]
[White "Lauridsen, Jesper Morch"]
[Black "Aydin, Gulenay"]
[WhiteFideId "1401890"]
[BlackFideId "34557431"]
[WhiteElo "2226"]
[BlackElo "1429"]
[Result "1-0"]
[Round "06"]
[TimeControl "180+1"]
[Date "2022.03.22"]
[WhiteClock "0:00:47"]
[BlackClock "0:00:16"]

1. e4 {[%clk 0:03:00]}  c5 {[%clk 0:02:59]} 2. Nf3 {[%clk 0:03:00]}  d6 {[%clk 0:03:00]} 3. d4 {[%clk 0:03:00]}  cxd4 {[%clk 0:03:01]} 4. Nxd4 {[%clk 0:03:01]}  Nf6 {[%clk 0:03:01]} 5. Nc3 {[%clk 0:03:01]}  g6 {[%clk 0:03:02]} 6. f3 {[%clk 0:03:00]}  Bg7 {[%clk 0:03:02]} 7. Be3 {[%clk 0:03:00]}  a6 {[%clk 0:03:03]} 8. Qd2 {[%clk 0:02:59]}  h5 {[%clk 0:03:03]} 9. Be2 {[%clk 0:02:54]}  Nbd7 {[%clk 0:02:55]} 10. O-O {[%clk 0:02:53]}  O-O {[%clk 0:02:55]} 11. Rad1 {[%clk 0:02:45]}  b5 {[%clk 0:02:54]} 12. a3 {[%clk 0:02:29]}  Bb7 {[%clk 0:02:52]} 13. Bh6 {[%clk 0:02:21]}  Rc8 {[%clk 0:02:51]} 14. Bxg7 {[%clk 0:02:18]}  Kxg7 {[%clk 0:02:52]} 15. Kh1 {[%clk 0:02:04]}  Qb6 {[%clk 0:02:50]} 16. Qe3 {[%clk 0:01:51]}  Qc7 {[%clk 0:02:41]} 17. f4 {[%clk 0:01:43]}  e5 {[%clk 0:01:42]} 18. fxe5 {[%clk 0:01:42]}  dxe5 {[%clk 0:01:43]} 19. Nf5+ {[%clk 0:01:30]}  gxf5 {[%clk 0:01:16]} 20. Qg5+ {[%clk 0:01:29]}  Kh8 {[%clk 0:01:12]} 21. Rxd7 {[%clk 0:01:17]}  Nxd7 {[%clk 0:00:41]} 22. Qxh5+ {[%clk 0:01:13]}  Kg8 {[%clk 0:00:40]} 23. Qg5+ {[%clk 0:01:13]}  Kh8 {[%clk 0:00:37]} 24. Rf3 {[%clk 0:01:05]}  Nf6 {[%clk 0:00:16]} 25. Qxf6+ {[%clk 0:00:47]} 1-0


[Site "https://www.chess.com"]

[Event "Titled Tuesday Blitz March 22 Early 2022"]
[White "Le Ruyet, Leopold"]
[Black "Jary, Sergey"]
[WhiteFideId "645923"]
[BlackFideId "14110350"]
[WhiteElo "2276"]
[BlackElo "2260"]
[Result "1-0"]
[Round "06"]
[TimeControl "180+1"]
[Date "2022.03.22"]
[WhiteClock "0:00:05"]
[BlackClock "0:00:35"]

1. d4 {[%clk 0:03:00]}  d6 {[%clk 0:03:00]} 2. c4 {[%clk 0:02:56]}  e5 {[%clk 0:03:00]} 3. e3 {[%clk 0:02:56]}  g6 {[%clk 0:02:55]} 4. Nf3 {[%clk 0:02:56]}  Bg7 {[%clk 0:02:51]} 5. Nc3 {[%clk 0:02:56]}  exd4 {[%clk 0:02:47]} 6. exd4 {[%clk 0:02:56]}  Bg4 {[%clk 0:02:47]} 7. h3 {[%clk 0:02:55]}  Bxf3 {[%clk 0:02:44]} 8. Qxf3 {[%clk 0:02:56]}  Nc6 {[%clk 0:02:44]} 9. Be3 {[%clk 0:02:52]}  Nxd4 {[%clk 0:02:39]} 10. Bxd4 {[%clk 0:02:48]}  Bxd4 {[%clk 0:02:38]} 11. Qxb7 {[%clk 0:02:47]}  Nf6 {[%clk 0:02:27]} 12. Qc6+ {[%clk 0:02:41]}  Kf8 {[%clk 0:02:24]} 13. O-O-O {[%clk 0:02:34]}  Bxc3 {[%clk 0:02:21]} 14. bxc3 {[%clk 0:02:35]}  Kg7 {[%clk 0:02:21]} 15. g4 {[%clk 0:02:31]}  Qe8 {[%clk 0:02:10]} 16. Qxe8 {[%clk 0:02:16]}  Rhxe8 {[%clk 0:02:10]} 17. Bg2 {[%clk 0:02:13]}  Rab8 {[%clk 0:02:10]} 18. Rhe1 {[%clk 0:02:09]}  Kf8 {[%clk 0:02:09]} 19. Bc6 {[%clk 0:02:04]}  Rxe1 {[%clk 0:02:04]} 20. Rxe1 {[%clk 0:02:05]}  Rb6 {[%clk 0:02:05]} 21. Ba4 {[%clk 0:02:02]}  h5 {[%clk 0:01:58]} 22. g5 {[%clk 0:01:58]}  Nh7 {[%clk 0:01:58]} 23. Re8+ {[%clk 0:01:54]}  Kg7 {[%clk 0:01:57]} 24. h4 {[%clk 0:01:51]}  Ra6 {[%clk 0:01:52]} 25. Bb3 {[%clk 0:01:39]}  Ra5 {[%clk 0:01:51]} 26. Re7 {[%clk 0:01:26]}  Rc5 {[%clk 0:01:51]} 27. Kd2 {[%clk 0:01:21]}  Kf8 {[%clk 0:01:51]} 28. Re4 {[%clk 0:01:17]}  Kg8 {[%clk 0:01:48]} 29. Re8+ {[%clk 0:01:13]}  Nf8 {[%clk 0:01:46]} 30. Ra8 {[%clk 0:01:12]}  a5 {[%clk 0:01:41]} 31. Kd3 {[%clk 0:01:09]}  Kg7 {[%clk 0:01:38]} 32. Bd1 {[%clk 0:01:01]}  Nd7 {[%clk 0:01:34]} 33. f4 {[%clk 0:00:59]}  Rf5 {[%clk 0:01:28]} 34. Ke3 {[%clk 0:00:54]}  Nb6 {[%clk 0:01:22]} 35. Ra7 {[%clk 0:00:53]}  Nxc4+ {[%clk 0:01:22]} 36. Kf3 {[%clk 0:00:29]}  Rc5 {[%clk 0:01:22]} 37. Ke4 {[%clk 0:00:25]}  Kf8 {[%clk 0:01:21]} 38. Kd4 {[%clk 0:00:24]}  Nb6 {[%clk 0:01:11]} 39. Bb3 {[%clk 0:00:20]}  a4 {[%clk 0:01:04]} 40. Bxa4 {[%clk 0:00:19]}  Rc4+ {[%clk 0:01:04]} 41. Kd3 {[%clk 0:00:18]}  Rxa4 {[%clk 0:01:04]} 42. Rxc7 {[%clk 0:00:18]}  Rxa2 {[%clk 0:01:05]} 43. Rc6 {[%clk 0:00:19]}  Nc8 {[%clk 0:01:02]} 44. Rxc8+ {[%clk 0:00:18]}  Ke7 {[%clk 0:01:02]} 45. Ke4 {[%clk 0:00:15]}  Re2+ {[%clk 0:01:00]} 46. Kd5 {[%clk 0:00:14]}  Rd2+ {[%clk 0:00:58]} 47. Kc6 {[%clk 0:00:15]}  Rd3 {[%clk 0:00:56]} 48. Kb5 {[%clk 0:00:14]}  Rf3 {[%clk 0:00:54]} 49. Rc7+ {[%clk 0:00:11]}  Ke6 {[%clk 0:00:54]} 50. Rc4 {[%clk 0:00:11]}  Rh3 {[%clk 0:00:53]} 51. Re4+ {[%clk 0:00:09]}  Kd7 {[%clk 0:00:53]} 52. c4 {[%clk 0:00:08]}  Rxh4 {[%clk 0:00:53]} 53. Rd4 {[%clk 0:00:08]}  Ke7 {[%clk 0:00:51]} 54. Kc6 {[%clk 0:00:08]}  Rg4 {[%clk 0:00:48]} 55. Re4+ {[%clk 0:00:08]}  Kf8 {[%clk 0:00:47]} 56. Kxd6 {[%clk 0:00:09]}  h4 {[%clk 0:00:46]} 57. c5 {[%clk 0:00:09]}  h3 {[%clk 0:00:46]} 58. c6 {[%clk 0:00:10]}  h2 {[%clk 0:00:45]} 59. c7 {[%clk 0:00:09]}  h1=Q {[%clk 0:00:42]} 60. c8=Q+ {[%clk 0:00:09]}  Kg7 {[%clk 0:00:42]} 61. Qc3+ {[%clk 0:00:06]}  Kh7 {[%clk 0:00:38]} 62. Re8 {[%clk 0:00:06]}  Qd1+ {[%clk 0:00:37]} 63. Ke7 {[%clk 0:00:06]}  Qe2+ {[%clk 0:00:36]} 64. Kf8 {[%clk 0:00:06]}  Qh2 {[%clk 0:00:35]} 65. Qg7# {[%clk 0:00:05]} 1-0


[Site "https://www.chess.com"]

[Event "Titled Tuesday Blitz March 22 Early 2022"]
[White "Maltsevskaya, Aleksandra"]
[Black "Przybylski, Wojciech"]
[WhiteFideId "24174041"]
[BlackFideId "1117599"]
[WhiteElo "2241"]
[BlackElo "2133"]
[Result "1/2-1/2"]
[Round "06"]
[TimeControl "180+1"]
[Date "2022.03.22"]
[WhiteClock "0:00:07"]
[BlackClock "0:00:05"]

1. e4 {[%clk 0:03:00]}  e5 {[%clk 0:02:59]} 2. Nf3 {[%clk 0:03:00]}  Nc6 {[%clk 0:02:58]} 3. Bb5 {[%clk 0:03:00]}  Nf6 {[%clk 0:02:59]} 4. O-O {[%clk 0:02:57]}  Nxe4 {[%clk 0:02:58]} 5. d4 {[%clk 0:02:57]}  Nd6 {[%clk 0:02:58]} 6. Bxc6 {[%clk 0:02:58]}  dxc6 {[%clk 0:02:59]} 7. dxe5 {[%clk 0:02:59]}  Nf5 {[%clk 0:02:59]} 8. Qxd8+ {[%clk 0:02:58]}  Kxd8 {[%clk 0:02:59]} 9. b3 {[%clk 0:02:57]}  Ke8 {[%clk 0:02:57]} 10. Bb2 {[%clk 0:02:56]}  Be7 {[%clk 0:02:55]} 11. Nbd2 {[%clk 0:02:56]}  h5 {[%clk 0:02:51]} 12. Ne4 {[%clk 0:02:47]}  h4 {[%clk 0:02:48]} 13. Rfe1 {[%clk 0:02:43]}  Be6 {[%clk 0:02:47]} 14. c4 {[%clk 0:02:43]}  Rh5 {[%clk 0:02:44]} 15. Rad1 {[%clk 0:02:38]}  Rd8 {[%clk 0:02:42]} 16. h3 {[%clk 0:02:23]}  b6 {[%clk 0:02:31]} 17. Bc1 {[%clk 0:02:18]}  Rxd1 {[%clk 0:02:20]} 18. Rxd1 {[%clk 0:02:17]}  a5 {[%clk 0:02:17]} 19. Bg5 {[%clk 0:02:06]}  c5 {[%clk 0:01:41]} 20. Bxe7 {[%clk 0:01:59]}  Kxe7 {[%clk 0:01:41]} 21. Nc3 {[%clk 0:02:00]}  Nd4 {[%clk 0:01:39]} 22. Nxd4 {[%clk 0:01:49]}  cxd4 {[%clk 0:01:39]} 23. Rxd4 {[%clk 0:01:50]}  Rxe5 {[%clk 0:01:37]} 24. Rxh4 {[%clk 0:01:13]}  Re1+ {[%clk 0:01:36]} 25. Kh2 {[%clk 0:01:13]}  Rc1 {[%clk 0:01:34]} 26. Nb5 {[%clk 0:01:12]}  c6 {[%clk 0:01:30]} 27. Nd4 {[%clk 0:01:11]}  Bd7 {[%clk 0:01:28]} 28. Re4+ {[%clk 0:01:09]}  Kd6 {[%clk 0:01:26]} 29. Re2 {[%clk 0:01:09]}  Rd1 {[%clk 0:01:22]} 30. Nc2 {[%clk 0:01:05]}  Be6 {[%clk 0:01:11]} 31. Ne3 {[%clk 0:01:04]}  Rd3 {[%clk 0:01:05]} 32. f4 {[%clk 0:00:48]}  a4 {[%clk 0:00:51]} 33. bxa4 {[%clk 0:00:46]}  Ra3 {[%clk 0:00:49]} 34. f5 {[%clk 0:00:44]}  Bd7 {[%clk 0:00:47]} 35. Kg1 {[%clk 0:00:19]}  Rxa4 {[%clk 0:00:44]} 36. Kf2 {[%clk 0:00:18]}  Bc8 {[%clk 0:00:39]} 37. Kf3 {[%clk 0:00:15]}  Ba6 {[%clk 0:00:38]} 38. Rd2+ {[%clk 0:00:12]}  Ke7 {[%clk 0:00:32]} 39. Rc2 {[%clk 0:00:09]}  b5 {[%clk 0:00:23]} 40. Kf4 {[%clk 0:00:07]}  bxc4 {[%clk 0:00:22]} 41. g4 {[%clk 0:00:07]}  c3+ {[%clk 0:00:20]} 42. Kf3 {[%clk 0:00:07]}  Ra3 {[%clk 0:00:21]} 43. Ke4 {[%clk 0:00:05]}  Bb5 {[%clk 0:00:19]} 44. Kd4 {[%clk 0:00:05]}  Kd6 {[%clk 0:00:17]} 45. g5 {[%clk 0:00:03]}  c5+ {[%clk 0:00:16]} 46. Ke4 {[%clk 0:00:03]}  Ke7 {[%clk 0:00:12]} 47. Nd5+ {[%clk 0:00:02]}  Kd6 {[%clk 0:00:11]} 48. Nxc3 {[%clk 0:00:03]}  Bc6+ {[%clk 0:00:11]} 49. Ke3 {[%clk 0:00:03]}  Ke5 {[%clk 0:00:08]} 50. Kd2 {[%clk 0:00:03]}  Kxf5 {[%clk 0:00:08]} 51. h4 {[%clk 0:00:02]}  Kg4 {[%clk 0:00:05]} 52. Rb2 {[%clk 0:00:03]}  Kxh4 {[%clk 0:00:05]} 53. Rb6 {[%clk 0:00:04]}  Bd7 {[%clk 0:00:05]} 54. Rb7 {[%clk 0:00:04]}  Be6 {[%clk 0:00:05]} 55. g6 {[%clk 0:00:05]}  fxg6 {[%clk 0:00:05]} 56. Rxg7 {[%clk 0:00:06]}  Bf5 {[%clk 0:00:05]} 57. Rc7 {[%clk 0:00:05]}  Ra5 {[%clk 0:00:04]} 58. a4 {[%clk 0:00:06]}  Kg5 {[%clk 0:00:04]} 59. Ke3 {[%clk 0:00:06]}  Kf6 {[%clk 0:00:04]} 60. Rc6+ {[%clk 0:00:06]}  Ke5 {[%clk 0:00:05]} 61. Rc7 {[%clk 0:00:06]}  g5 {[%clk 0:00:05]} 62. Re7+ {[%clk 0:00:07]}  Kf6 {[%clk 0:00:05]} 63. Nd5+ {[%clk 0:00:07]}  Kg6 {[%clk 0:00:05]} 64. Nc3 {[%clk 0:00:03]}  g4 {[%clk 0:00:06]} 65. Kf4 {[%clk 0:00:03]}  Bc8 {[%clk 0:00:05]} 66. Rc7 {[%clk 0:00:03]}  Be6 {[%clk 0:00:05]} 67. Rc6 {[%clk 0:00:03]}  Kf7 {[%clk 0:00:05]} 68. Ke5 {[%clk 0:00:03]}  Bd7 {[%clk 0:00:04]} 69. Rc7 {[%clk 0:00:03]}  Ke8 {[%clk 0:00:04]} 70. Kd6 {[%clk 0:00:04]}  Ra6+ {[%clk 0:00:04]} 71. Ke5 {[%clk 0:00:03]}  g3 {[%clk 0:00:04]} 72. Rb7 {[%clk 0:00:02]}  g2 {[%clk 0:00:03]} 73. Rb1 {[%clk 0:00:02]}  Rg6 {[%clk 0:00:02]} 74. Rg1 {[%clk 0:00:02]}  Bc6 {[%clk 0:00:02]} 75. Kf4 {[%clk 0:00:02]}  Rf6+ {[%clk 0:00:02]} 76. Ke5 {[%clk 0:00:03]}  Rf1 {[%clk 0:00:02]} 77. Ne2 {[%clk 0:00:03]}  Rxg1 {[%clk 0:00:02]} 78. Nxg1 {[%clk 0:00:04]}  Bxa4 {[%clk 0:00:03]} 79. Kd5 {[%clk 0:00:04]}  Bb5 {[%clk 0:00:03]} 80. Kxc5 {[%clk 0:00:05]}  Bf1 {[%clk 0:00:03]} 81. Kd4 {[%clk 0:00:05]}  Ke7 {[%clk 0:00:04]} 82. Ke3 {[%clk 0:00:06]}  Kd6 {[%clk 0:00:04]} 83. Kf2 {[%clk 0:00:06]}  Kd5 {[%clk 0:00:05]} 84. Nf3 {[%clk 0:00:06]}  Ke4 {[%clk 0:00:05]} 85. Nh4 {[%clk 0:00:06]}  Kf4 {[%clk 0:00:05]} 86. Nxg2+ {[%clk 0:00:07]} 1/2-1/2


[Site "https://www.chess.com"]

[Event "Titled Tuesday Blitz March 22 Early 2022"]
[White "Manukian, Artak"]
[Black "Quirke, Jeffrey"]
[WhiteFideId "13301373"]
[BlackFideId "2013029"]
[WhiteElo "2428"]
[BlackElo "2223"]
[Result "1-0"]
[Round "06"]
[TimeControl "180+1"]
[Date "2022.03.22"]
[WhiteClock "0:00:10"]
[BlackClock "0:00:01"]

1. e4 {[%clk 0:02:57]}  c5 {[%clk 0:03:00]} 2. Nf3 {[%clk 0:02:57]}  e6 {[%clk 0:03:00]} 3. c3 {[%clk 0:02:57]}  Nf6 {[%clk 0:03:00]} 4. e5 {[%clk 0:02:57]}  Nd5 {[%clk 0:03:00]} 5. d4 {[%clk 0:02:57]}  cxd4 {[%clk 0:03:01]} 6. cxd4 {[%clk 0:02:57]}  d6 {[%clk 0:03:01]} 7. Nc3 {[%clk 0:02:57]}  Nxc3 {[%clk 0:03:00]} 8. bxc3 {[%clk 0:02:58]}  Qc7 {[%clk 0:03:00]} 9. Bd2 {[%clk 0:02:58]}  Nd7 {[%clk 0:03:00]} 10. Bb5 {[%clk 0:02:57]}  Be7 {[%clk 0:02:57]} 11. O-O {[%clk 0:02:56]}  O-O {[%clk 0:02:57]} 12. Re1 {[%clk 0:02:56]}  dxe5 {[%clk 0:02:55]} 13. dxe5 {[%clk 0:02:55]}  Nc5 {[%clk 0:02:42]} 14. Bg5 {[%clk 0:02:49]}  Rd8 {[%clk 0:02:29]} 15. Qc2 {[%clk 0:02:43]}  b6 {[%clk 0:02:17]} 16. Bxe7 {[%clk 0:02:36]}  Qxe7 {[%clk 0:02:16]} 17. Nd4 {[%clk 0:02:36]}  Bb7 {[%clk 0:02:15]} 18. Nc6 {[%clk 0:02:36]}  Bxc6 {[%clk 0:02:15]} 19. Bxc6 {[%clk 0:02:37]}  Rac8 {[%clk 0:02:14]} 20. Bf3 {[%clk 0:02:33]}  Qc7 {[%clk 0:02:07]} 21. h4 {[%clk 0:02:18]}  Nd7 {[%clk 0:02:04]} 22. Qe4 {[%clk 0:02:03]}  Qxc3 {[%clk 0:01:53]} 23. Rac1 {[%clk 0:02:02]}  Qxc1 {[%clk 0:01:50]} 24. Rxc1 {[%clk 0:02:03]}  Rxc1+ {[%clk 0:01:50]} 25. Kh2 {[%clk 0:02:03]}  Rc7 {[%clk 0:01:44]} 26. Qd4 {[%clk 0:01:46]}  Rdc8 {[%clk 0:01:38]} 27. Bd1 {[%clk 0:01:26]}  Nf8 {[%clk 0:01:34]} 28. Bb3 {[%clk 0:01:24]}  Rd7 {[%clk 0:01:16]} 29. Qe4 {[%clk 0:01:21]}  Rd2 {[%clk 0:00:56]} 30. Kg3 {[%clk 0:01:18]}  Rc3+ {[%clk 0:00:54]} 31. f3 {[%clk 0:01:18]}  Rc5 {[%clk 0:00:47]} 32. h5 {[%clk 0:01:09]}  h6 {[%clk 0:00:45]} 33. Kh3 {[%clk 0:01:04]}  Rd7 {[%clk 0:00:26]} 34. f4 {[%clk 0:01:00]}  Rc3+ {[%clk 0:00:23]} 35. Kh2 {[%clk 0:00:55]}  Rd2 {[%clk 0:00:15]} 36. f5 {[%clk 0:00:51]}  Rcd3 {[%clk 0:00:08]} 37. fxe6 {[%clk 0:00:50]}  fxe6 {[%clk 0:00:08]} 38. Qg4 {[%clk 0:00:46]}  Rd4 {[%clk 0:00:07]} 39. Bxe6+ {[%clk 0:00:44]}  Kh8 {[%clk 0:00:08]} 40. Qf5 {[%clk 0:00:44]}  Nh7 {[%clk 0:00:04]} 41. Bf7 {[%clk 0:00:33]}  Rh4+ {[%clk 0:00:04]} 42. Kg3 {[%clk 0:00:31]}  Rhd4 {[%clk 0:00:01]} 43. Bg6 {[%clk 0:00:24]}  R2d3+ {[%clk 0:00:01]} 44. Qxd3 {[%clk 0:00:19]}  Rxd3+ {[%clk 0:00:01]} 45. Bxd3 {[%clk 0:00:19]}  Ng5 {[%clk 0:00:01]} 46. Kf4 {[%clk 0:00:19]}  Kg8 {[%clk 0:00:02]} 47. Kf5 {[%clk 0:00:19]}  Kf7 {[%clk 0:00:02]} 48. Bc4+ {[%clk 0:00:18]}  Ke7 {[%clk 0:00:03]} 49. g4 {[%clk 0:00:19]}  Nf3 {[%clk 0:00:02]} 50. Bd5 {[%clk 0:00:18]}  Nd4+ {[%clk 0:00:02]} 51. Ke4 {[%clk 0:00:18]}  Nc2 {[%clk 0:00:02]} 52. Kf5 {[%clk 0:00:17]}  Nb4 {[%clk 0:00:02]} 53. Bb3 {[%clk 0:00:17]}  Nc6 {[%clk 0:00:02]} 54. Bd5 {[%clk 0:00:15]}  Nd4+ {[%clk 0:00:02]} 55. Ke4 {[%clk 0:00:16]}  Nb5 {[%clk 0:00:02]} 56. Kd3 {[%clk 0:00:15]}  Nc7 {[%clk 0:00:01]} 57. Bc4 {[%clk 0:00:14]}  Ne6 {[%clk 0:00:01]} 58. Ke4 {[%clk 0:00:11]}  Nc5+ {[%clk 0:00:02]} 59. Kd5 {[%clk 0:00:11]}  Nd7 {[%clk 0:00:01]} 60. Bb5 {[%clk 0:00:10]} 1-0


[Site "https://www.chess.com"]